[Event "Championnat d'Europe Rapide"]
[Date "2024.12.07"]
[White "Bulmaga, Irina"]
[Black "Pichot, Alan"]
[WhiteElo "2386"]
[BlackElo "2637"]
[Round "3.15"]
[Result "0-1"]
[TimeControl "900+10"]

1. e4 {[%emt 00:00:04] [%clk 00:15:17]} e5 {[%emt 00:00:02] [%clk 00:15:18]} 2.
Nf3 {[%emt 00:00:02] [%clk 00:15:24]} Nc6 {[%emt 00:00:06]} 3. d4 {[%clk
00:15:31]} exd4 {[%emt 00:00:03] [%clk 00:15:33]} 4. Nxd4 {[%emt 00:00:02] [%clk
00:15:39]} Nf6 {[%emt 00:00:30] [%clk 00:15:13]} 5. Nxc6 {[%emt 00:00:11] [%clk
00:15:38]} bxc6 {[%emt 00:00:02] [%clk 00:15:21]} 6. Nd2 {[%emt 00:00:02] [%clk
00:15:45]} g6 {[%emt 00:01:48] [%clk 00:13:44]} 7. Bd3 {[%emt 00:01:03] [%clk
00:14:52]} Bg7 {[%emt 00:00:11] [%clk 00:13:43]} 8. O-O {[%emt 00:00:14] [%clk
00:14:48]} O-O {[%emt 00:00:07] [%clk 00:13:46]} 9. f4 {[%emt 00:01:01] [%clk
00:13:57]} d6 {[%emt 00:00:16] [%clk 00:13:40]} 10. h3 {[%emt 00:00:08] [%clk
00:13:59]} Re8 {[%emt 00:00:04] [%clk 00:13:46]} 11. Qf3 {[%emt 00:00:12] [%clk
00:13:57]} Bb7 {[%emt 00:00:58] [%clk 00:12:58]} 12. Rb1 {[%emt 00:01:18] [%clk
00:12:49]} c5 {[%emt 00:00:36] [%clk 00:12:32]} 13. b3 {[%emt 00:00:07] [%clk
00:12:52]} d5 {[%emt 00:00:41] [%clk 00:12:02]} 14. e5 {[%emt 00:00:11] [%clk
00:12:50]} Ne4 {[%emt 00:00:02] [%clk 00:12:10]} 15. f5 {[%emt 00:00:51] [%clk
00:12:09]} Rxe5 {[%emt 00:01:26] [%clk 00:10:54]} 16. fxg6 {[%emt 00:01:39]
[%clk 00:10:40]} fxg6 {[%emt 00:00:47] [%clk 00:10:17]} 17. Qf7+ {[%emt
00:03:23] [%clk 00:07:27]} Kh8 {[%emt 00:00:02] [%clk 00:10:26]} 18. Nxe4 {[%emt
00:01:27] [%clk 00:06:09]} dxe4 {[%emt 00:00:15] [%clk 00:10:21]} 19. Bb2 {[%emt
00:00:21] [%clk 00:05:58]} exd3 {[%emt 00:01:19] [%clk 00:09:12]} 20. Rbe1
{[%emt 00:00:01] [%clk 00:06:06]} Qd5 {[%emt 00:03:37] [%clk 00:05:46]} 21. Qxd5
{[%emt 00:02:27] [%clk 00:03:49]} Rxd5 {[%emt 00:00:02] [%clk 00:05:54]} 22.
Bxg7+ {[%emt 00:00:09] [%clk 00:03:50]} Kxg7 {[%emt 00:00:02] [%clk 00:06:02]}
23. Re7+ {[%emt 00:00:03] [%clk 00:03:57]} Kh6 {[%emt 00:00:05] [%clk 00:06:06]}
24. cxd3 {[%emt 00:00:33] [%clk 00:03:35]} Rxd3 {[%emt 00:00:56] [%clk
00:05:20]} 25. Rff7 {[%emt 00:01:05] [%clk 00:02:40]} Rh8 {[%emt 00:00:17] [%clk
00:05:12]} 26. Rxc7 {[%emt 00:00:15] [%clk 00:02:36]} Bd5 {[%emt 00:02:03] [%clk
00:03:19]} 27. Rfd7 {[%emt 00:00:27] [%clk 00:02:19]} Re8 {[%emt 00:00:05] [%clk
00:03:25]} 28. h4 {[%emt 00:02:13] [%clk 00:00:16]} Kh5 {[%emt 00:00:06] [%clk
00:03:29]} 29. Rxc5 {[%emt 00:00:03] [%clk 00:00:24]} Re5 {[%emt 00:00:49] [%clk
00:02:49]} 30. Rxh7+ {[%emt 00:00:02] [%clk 00:00:31]} Kg4 {[%emt 00:00:01]
[%clk 00:02:58]} 31. Rg7 {[%emt 00:00:20] [%clk 00:00:22]} Re6 {[%emt 00:01:45]
[%clk 00:01:23]} 32. Rd7 {[%emt 00:00:19] [%clk 00:00:14]} Kg3 {[%emt 00:00:09]
[%clk 00:01:23]} 33. Rc1 {[%emt 00:00:13] [%clk 00:00:12]} Re2 {[%emt 00:00:12]
[%clk 00:01:20]} 34. Rg7 {[%emt 00:00:10] [%clk 00:00:12]} Rxg2+ {[%emt
00:00:04] [%clk 00:01:26]} 35. Kf1 {[%emt 00:00:02] [%clk 00:00:20]} Be4 {[%emt
00:00:58] [%clk 00:00:38]} 36. Rf7 {[%emt 00:00:20] [%clk 00:00:11]} Rh2 {[%emt
00:00:22] [%clk 00:00:25]} 37. Ke1 {[%emt 00:00:10] [%clk 00:00:11]} Re3+ {[%emt
00:00:05] [%clk 00:00:30]} 0-1

[Site "Europe Echecs"]

[Event "Championnat d'Europe Rapide"]
[Date "2024.12.07"]
[White "Georgiev, Kiril"]
[Black "Danov, Lyubomir"]
[WhiteElo "2537"]
[BlackElo "2297"]
[Round "3.16"]
[Result "1-0"]
[TimeControl "900+10"]

1. Nf3 {[%clk 00:15:16]} d5 {[%emt 00:00:46] [%clk 00:14:35]} 2. e3 {[%emt
00:00:06] [%clk 00:15:20]} Nf6 {[%emt 00:00:06] [%clk 00:14:39]} 3. c4 {[%emt
00:00:22] [%clk 00:15:08]} e6 {[%emt 00:00:13] [%clk 00:14:37]} 4. b3 {[%emt
00:00:10] [%clk 00:15:08]} Bd6 {[%emt 00:00:10] [%clk 00:14:37]} 5. Nc3 {[%emt
00:00:03] [%clk 00:15:14]} O-O {[%emt 00:00:03] [%clk 00:14:44]} 6. Bb2 {[%emt
00:00:15] [%clk 00:15:09]} b6 {[%emt 00:00:12] [%clk 00:14:42]} 7. Qc2 {[%emt
00:00:12] [%clk 00:15:07]} a6 {[%emt 00:00:11] [%clk 00:14:42]} 8. cxd5 {[%emt
00:01:17] [%clk 00:13:59]} exd5 {[%emt 00:00:04] [%clk 00:14:49]} 9. g3 {[%emt
00:00:19] [%clk 00:13:49]} Bb7 {[%emt 00:00:10] [%clk 00:14:50]} 10. Bg2 {[%emt
00:00:05] [%clk 00:13:53]} d4 {[%emt 00:00:23] [%clk 00:14:37]} 11. Ne2 {[%emt
00:00:19] [%clk 00:13:41]} dxe3 {[%emt 00:00:16] [%clk 00:14:35]} 12. dxe3
{[%emt 00:00:25] [%clk 00:13:25]} Bb4+ {[%emt 00:00:46] [%clk 00:13:59]} 13. Bc3
{[%emt 00:00:33] [%clk 00:13:02]} Bxc3+ {[%emt 00:00:06] [%clk 00:14:04]} 14.
Nxc3 {[%emt 00:01:02] [%clk 00:12:10]} Nbd7 {[%emt 00:00:34] [%clk 00:13:40]}
15. O-O {[%emt 00:00:08] [%clk 00:12:11]} Qe7 {[%emt 00:00:19] [%clk 00:13:31]}
16. Rfd1 {[%emt 00:00:24] [%clk 00:11:57]} c5 {[%emt 00:00:44] [%clk 00:12:57]}
17. Qf5 {[%emt 00:01:18] [%clk 00:10:47]} Rfd8 {[%emt 00:00:23] [%clk 00:12:47]}
18. Rac1 {[%emt 00:00:12] [%clk 00:10:44]} Nf8 {[%emt 00:00:45] [%clk 00:12:12]}
19. Qe5 {[%emt 00:01:03] [%clk 00:09:48]} Ne6 {[%emt 00:00:33] [%clk 00:11:52]}
20. h3 {[%emt 00:01:40] [%clk 00:08:18]} Rxd1+ {[%emt 00:00:22] [%clk 00:11:41]}
21. Rxd1 {[%emt 00:00:03] [%clk 00:08:24]} Rd8 {[%emt 00:00:02] [%clk 00:11:49]}
22. Rc1 {[%emt 00:01:22] [%clk 00:07:11]} b5 {[%emt 00:03:03] [%clk 00:08:57]}
23. Ne2 {[%emt 00:01:53] [%clk 00:05:28]} Qd6 {[%emt 00:01:50] [%clk 00:07:18]}
24. Qxd6 {[%emt 00:01:05] [%clk 00:04:33]} Rxd6 {[%emt 00:00:02] [%clk
00:07:26]} 25. Nf4 {[%emt 00:00:02] [%clk 00:04:40]} Nxf4 {[%emt 00:00:21] [%clk
00:07:16]} 26. gxf4 {[%emt 00:00:04] [%clk 00:04:45]} Nd7 {[%emt 00:00:09] [%clk
00:07:18]} 27. Ne5 {[%emt 00:00:56] [%clk 00:03:57]} Bxg2 {[%emt 00:00:50] [%clk
00:06:41]} 28. Kxg2 {[%emt 00:00:21] [%clk 00:03:45]} Nxe5 {[%emt 00:00:16]
[%clk 00:06:35]} 29. fxe5 {[%emt 00:00:01] [%clk 00:03:53]} Rd5 {[%emt 00:00:11]
[%clk 00:06:34]} 30. f4 {[%emt 00:00:04] [%clk 00:04:00]} Rd2+ {[%emt 00:00:04]
[%clk 00:06:40]} 31. Kf3 {[%emt 00:00:01] [%clk 00:04:08]} Rxa2 {[%emt 00:00:02]
[%clk 00:06:48]} 32. Rxc5 {[%emt 00:00:01] [%clk 00:04:17]} g6 {[%emt 00:00:02]
[%clk 00:06:57]} 33. b4 {[%emt 00:00:12] [%clk 00:04:14]} Ra4 {[%emt 00:00:04]
[%clk 00:07:04]} 34. Rc6 {[%emt 00:00:04] [%clk 00:04:19]} Rxb4 {[%emt 00:00:04]
[%clk 00:07:11]} 35. Rxa6 {[%emt 00:00:01] [%clk 00:04:27]} Rb1 {[%emt 00:00:01]
[%clk 00:07:19]} 36. Ke4 {[%emt 00:01:47] [%clk 00:02:50]} b4 {[%emt 00:00:14]
[%clk 00:07:16]} 37. Ra8+ {[%emt 00:00:05] [%clk 00:02:55]} Kg7 {[%emt 00:00:02]
[%clk 00:07:24]} 38. Ra7 {[%emt 00:00:01] [%clk 00:03:03]} Kf8 {[%emt 00:00:05]
[%clk 00:07:29]} 39. e6 {[%emt 00:00:18] [%clk 00:02:55]} fxe6 {[%emt 00:00:01]
[%clk 00:07:38]} 40. Rxh7 {[%emt 00:00:51] [%clk 00:02:13]} b3 {[%emt 00:00:06]
[%clk 00:07:43]} 41. Rb7 {[%emt 00:00:02] [%clk 00:02:20]} b2 {[%emt 00:00:07]
[%clk 00:07:47]} 42. Ke5 {[%emt 00:00:21] [%clk 00:02:08]} Re1 {[%emt 00:00:28]
[%clk 00:07:29]} 43. Rxb2 {[%emt 00:00:04] [%clk 00:02:15]} Rxe3+ {[%emt
00:00:07] [%clk 00:07:33]} 44. Kf6 {[%clk 00:02:23]} Ke8 {[%emt 00:01:15] [%clk
00:06:28]} 45. h4 {[%emt 00:00:13] [%clk 00:02:19]} Re4 {[%emt 00:02:00] [%clk
00:04:39]} 46. Rf2 {[%emt 00:01:32] [%clk 00:00:57]} e5 {[%emt 00:00:05] [%clk
00:04:43]} 47. fxe5 {[%emt 00:00:02] [%clk 00:01:06]} Rxh4 {[%emt 00:00:05]
[%clk 00:04:48]} 48. Ra2 {[%emt 00:00:21] [%clk 00:00:55]} Rf4+ {[%emt 00:00:06]
[%clk 00:04:51]} 49. Ke6 {[%emt 00:00:02] [%clk 00:01:04]} Kf8 {[%emt 00:00:03]
[%clk 00:04:57]} 50. Ra8+ {[%emt 00:00:19] [%clk 00:00:55]} Kg7 {[%emt 00:00:02]
[%clk 00:05:06]} 51. Kd5 {[%emt 00:00:03] [%clk 00:01:02]} g5 {[%emt 00:00:07]
[%clk 00:05:08]} 52. e6 {[%emt 00:00:10] [%clk 00:01:02]} Kf6 {[%emt 00:00:10]
[%clk 00:05:08]} 53. Ra7 {[%emt 00:00:04] [%clk 00:01:07]} Rb4 {[%emt 00:00:12]
[%clk 00:05:07]} 54. Rf7+ {[%emt 00:00:05] [%clk 00:01:12]} Kg6 {[%emt 00:00:02]
[%clk 00:05:16]} 55. Rf8 {[%clk 00:01:21]} Rb7 {[%emt 00:02:25] [%clk 00:03:02]}
56. Ke5 {[%emt 00:00:44] [%clk 00:00:46]} Kg7 {[%emt 00:00:32] [%clk 00:02:40]}
57. Rd8 {[%emt 00:00:15] [%clk 00:00:40]} Rb5+ {[%emt 00:00:18] [%clk 00:02:33]}
58. Kd6 {[%emt 00:00:09] [%clk 00:00:41]} Rb6+ {[%emt 00:01:23] [%clk 00:01:20]}
59. Kd7 {[%emt 00:00:14] [%clk 00:00:37]} Rb7+ {[%emt 00:00:08] [%clk 00:01:22]}
60. Kc6 {[%emt 00:00:04] [%clk 00:00:41]} Rb1 {[%emt 00:00:35] [%clk 00:00:59]}
61. e7 {[%emt 00:00:10] [%clk 00:00:40]} Rc1+ {[%emt 00:00:02] [%clk 00:01:08]}
62. Kd6 {[%emt 00:00:09] [%clk 00:00:37]} Rd1+ {[%emt 00:00:07] [%clk 00:01:15]}
63. Kc5 {[%emt 00:00:02] [%clk 00:00:44]} Rc1+ {[%emt 00:00:10] [%clk 00:01:16]}
64. Kd4 {[%emt 00:00:06] [%clk 00:00:46]} 1-0

[Site "Europe Echecs"]

[Event "Championnat d'Europe Rapide"]
[Date "2024.12.07"]
[White "Hamitevici, Vladimir"]
[Black "Djukic, Nikola"]
[WhiteElo "2423"]
[BlackElo "2493"]
[Round "3.17"]
[Result "1/2-1/2"]
[TimeControl "900+10"]

1. Nf3 {[%emt 00:00:03] [%clk 00:15:16]} Nf6 {[%emt 00:00:02] [%clk 00:15:19]}
2. e3 {[%emt 00:00:25] [%clk 00:15:01]} g6 {[%emt 00:00:12] [%clk 00:15:17]} 3.
b3 {[%emt 00:00:13] [%clk 00:14:58]} Bg7 {[%emt 00:00:02] [%clk 00:15:24]} 4.
Bb2 {[%emt 00:00:02] [%clk 00:15:06]} O-O {[%emt 00:01:25] [%clk 00:14:09]} 5.
Be2 {[%emt 00:00:56] [%clk 00:14:20]} c5 {[%emt 00:00:34] [%clk 00:13:45]} 6.
O-O {[%emt 00:00:11] [%clk 00:14:18]} Nc6 {[%emt 00:00:13] [%clk 00:13:43]} 7.
c4 {[%emt 00:00:30] [%clk 00:13:58]} b6 {[%emt 00:01:17] [%clk 00:12:37]} 8. d4
{[%emt 00:00:20] [%clk 00:13:47]} cxd4 {[%emt 00:00:04] [%clk 00:12:43]} 9. Nxd4
{[%emt 00:00:05] [%clk 00:13:52]} Nxd4 {[%emt 00:00:27] [%clk 00:12:26]} 10.
Qxd4 {[%emt 00:00:11] [%clk 00:13:52]} Bb7 {[%emt 00:00:08] [%clk 00:12:28]} 11.
Rd1 {[%emt 00:00:57] [%clk 00:13:04]} Qc8 {[%emt 00:02:10] [%clk 00:10:28]} 12.
Nc3 {[%emt 00:01:30] [%clk 00:11:44]} Qc5 {[%emt 00:00:35] [%clk 00:10:03]} 13.
Nd5 {[%emt 00:03:03] [%clk 00:08:50]} Bxd5 {[%emt 00:00:26] [%clk 00:09:48]} 14.
cxd5 {[%emt 00:00:09] [%clk 00:08:51]} Qxd4 {[%emt 00:00:06] [%clk 00:09:53]}
15. Bxd4 {[%emt 00:00:07] [%clk 00:08:54]} Ne4 {[%emt 00:00:03] [%clk 00:10:00]}
16. Bxg7 {[%emt 00:00:36] [%clk 00:08:27]} Kxg7 {[%emt 00:00:02] [%clk
00:10:09]} 17. Rd4 {[%emt 00:00:06] [%clk 00:08:30]} Nd6 {[%emt 00:02:19] [%clk
00:08:00]} 18. Ba6 {[%emt 00:00:02] [%clk 00:08:39]} b5 {[%emt 00:00:09] [%clk
00:08:01]} 19. a4 {[%emt 00:01:13] [%clk 00:07:36]} bxa4 {[%emt 00:00:20] [%clk
00:07:51]} 20. Rdxa4 {[%emt 00:01:48] [%clk 00:05:58]} Rfb8 {[%emt 00:00:01]
[%clk 00:07:59]} 21. Bc4 {[%emt 00:01:05] [%clk 00:05:03]} Rb7 {[%emt 00:00:11]
[%clk 00:07:59]} 22. f3 {[%emt 00:01:28] [%clk 00:03:44]} f5 {[%emt 00:01:03]
[%clk 00:07:06]} 23. Kf2 {[%emt 00:00:25] [%clk 00:03:29]} Kf6 {[%emt 00:01:32]
[%clk 00:05:44]} 24. R1a2 {[%emt 00:00:16] [%clk 00:03:23]} Nxc4 {[%emt
00:00:25] [%clk 00:05:30]} 25. bxc4 {[%emt 00:00:02] [%clk 00:03:30]} d6 {[%emt
00:00:02] [%clk 00:05:38]} 26. f4 {[%emt 00:01:10] [%clk 00:02:31]} Rc8 {[%emt
00:00:55] [%clk 00:04:53]} 27. Ke2 {[%emt 00:00:21] [%clk 00:02:19]} a5 {[%emt
00:01:15] [%clk 00:03:49]} 28. Kd3 {[%emt 00:00:25] [%clk 00:02:03]} Rb4 {[%emt
00:00:30] [%clk 00:03:29]} 29. Rxb4 {[%emt 00:00:26] [%clk 00:01:47]} axb4
{[%emt 00:00:01] [%clk 00:03:38]} 30. Ra5 {[%emt 00:00:45] [%clk 00:01:13]} Rb8
{[%emt 00:00:09] [%clk 00:03:39]} 31. Kc2 {[%emt 00:00:13] [%clk 00:01:09]} b3+
{[%emt 00:00:02] [%clk 00:03:47]} 32. Kb2 {[%emt 00:00:01] [%clk 00:01:18]} Rb4
{[%emt 00:00:54] [%clk 00:03:03]} 33. c5 {[%clk 00:01:27]} dxc5 {[%emt 00:00:05]
[%clk 00:03:09]} 34. Rxc5 {[%clk 00:01:36]} Kf7 {[%emt 00:00:37] [%clk
00:02:42]} 35. Rc7 {[%emt 00:00:02] [%clk 00:01:44]} Rb6 {[%emt 00:00:06] [%clk
00:02:45]} 36. Rc6 {[%emt 00:00:47] [%clk 00:01:08]} Rb5 {[%emt 00:00:12] [%clk
00:02:42]} 37. d6 {[%emt 00:00:09] [%clk 00:01:09]} Rd5 {[%emt 00:00:09] [%clk
00:02:44]} 38. dxe7 {[%emt 00:00:58] [%clk 00:00:21]} Rd2+ {[%emt 00:00:01]
[%clk 00:02:52]} 39. Kxb3 {[%emt 00:00:02] [%clk 00:00:30]} Rxg2 {[%emt
00:00:02] [%clk 00:03:00]} 40. Rc8 {[%emt 00:00:08] [%clk 00:00:32]} Kxe7 {[%emt
00:00:05] [%clk 00:03:05]} 41. Rc7+ {[%emt 00:00:02] [%clk 00:00:40]} Kf6 {[%emt
00:00:22] [%clk 00:02:53]} 42. Rxh7 {[%emt 00:00:03] [%clk 00:00:46]} Re2 {[%emt
00:00:17] [%clk 00:02:46]} 43. Rh3 {[%emt 00:00:03] [%clk 00:00:53]} Rd2 {[%emt
00:00:35] [%clk 00:02:21]} 44. Kc3 {[%emt 00:00:04] [%clk 00:00:59]} Ra2 {[%emt
00:00:09] [%clk 00:02:22]} 45. Rh7 {[%emt 00:00:27] [%clk 00:00:42]} Rg2 {[%emt
00:00:16] [%clk 00:02:17]} 46. Kd3 {[%emt 00:00:16] [%clk 00:00:35]} Ra2 {[%emt
00:00:03] [%clk 00:02:24]} 47. Rh3 {[%emt 00:00:25] [%clk 00:00:19]} Kg7 {[%emt
00:00:07] [%clk 00:02:28]} 48. Kd4 {[%emt 00:00:07] [%clk 00:00:23]} Ra4+ {[%emt
00:00:08] [%clk 00:02:30]} 49. Kd3 {[%emt 00:00:03] [%clk 00:00:29]} Ra2 {[%emt
00:00:02] [%clk 00:02:39]} 50. Kd4 {[%emt 00:00:04] [%clk 00:00:34]} Ra4+ {[%emt
00:00:01] [%clk 00:02:48]} 51. Kd3 {[%clk 00:00:43]} 1/2-1/2

[Site "Europe Echecs"]

[Event "Championnat d'Europe Rapide"]
[Date "2024.12.07"]
[White "Quparadze, Giga"]
[Black "Magold, Filip"]
[WhiteElo "2537"]
[BlackElo "2428"]
[Round "3.18"]
[Result "0-1"]
[TimeControl "900+10"]

1. e4 {[%clk 00:15:19]} c5 {[%emt 00:00:02] [%clk 00:15:18]} 2. Nf3 {[%emt
00:00:01] [%clk 00:15:28]} d6 {[%emt 00:00:02] [%clk 00:15:26]} 3. d4 {[%emt
00:00:01] [%clk 00:15:37]} Nf6 {[%emt 00:00:02] [%clk 00:15:35]} 4. Nc3 {[%emt
00:00:01] [%clk 00:15:46]} cxd4 {[%emt 00:00:01] [%clk 00:15:43]} 5. Nxd4 {[%emt
00:00:02] [%clk 00:15:55]} a6 {[%clk 00:15:52]} 6. Nb3 {[%emt 00:00:02] [%clk
00:16:02]} e6 {[%emt 00:00:28] [%clk 00:15:34]} 7. g4 {[%emt 00:00:02] [%clk
00:16:10]} b5 {[%emt 00:00:14] [%clk 00:15:30]} 8. Bg2 {[%emt 00:00:04] [%clk
00:16:16]} Bb7 {[%emt 00:00:03] [%clk 00:15:37]} 9. g5 {[%emt 00:00:02] [%clk
00:16:24]} Nfd7 {[%emt 00:00:02] [%clk 00:15:45]} 10. a3 {[%emt 00:00:15] [%clk
00:16:20]} Be7 {[%emt 00:00:05] [%clk 00:15:49]} 11. h4 {[%emt 00:00:02] [%clk
00:16:28]} Nc6 {[%emt 00:00:11] [%clk 00:15:48]} 12. Be3 {[%emt 00:00:10] [%clk
00:16:28]} O-O {[%emt 00:00:09] [%clk 00:15:49]} 13. f4 {[%emt 00:00:05] [%clk
00:16:33]} Nb6 {[%emt 00:00:23] [%clk 00:15:37]} 14. Qe2 {[%emt 00:00:05] [%clk
00:16:38]} Nc4 {[%emt 00:02:47] [%clk 00:13:00]} 15. O-O-O {[%emt 00:00:02]
[%clk 00:16:44]} N6a5 {[%emt 00:00:08] [%clk 00:13:03]} 16. Bd4 {[%emt 00:00:29]
[%clk 00:16:26]} Qc7 {[%emt 00:00:55] [%clk 00:12:18]} 17. Nxa5 {[%emt 00:00:38]
[%clk 00:15:58]} Qxa5 {[%emt 00:00:06] [%clk 00:12:22]} 18. Na2 {[%emt 00:00:02]
[%clk 00:16:05]} Rfc8 {[%emt 00:00:28] [%clk 00:12:04]} 19. Bc3 {[%emt 00:00:23]
[%clk 00:15:53]} Qb6 {[%emt 00:00:02] [%clk 00:12:12]} 20. Rd3 {[%emt 00:00:06]
[%clk 00:15:56]} a5 {[%emt 00:00:05] [%clk 00:12:18]} 21. g6 {[%emt 00:00:10]
[%clk 00:15:56]} b4 {[%emt 00:01:28] [%clk 00:11:00]} 22. gxf7+ {[%emt 00:00:12]
[%clk 00:15:54]} Kxf7 {[%emt 00:00:10] [%clk 00:11:00]} 23. Bd4 {[%emt 00:01:20]
[%clk 00:14:44]} Qb5 {[%emt 00:00:02] [%clk 00:11:08]} 24. Bh3 {[%emt 00:00:21]
[%clk 00:14:32]} Bf8 {[%emt 00:05:12] [%clk 00:06:06]} 25. Qg4 {[%emt 00:01:24]
[%clk 00:13:18]} Re8 {[%emt 00:00:55] [%clk 00:05:22]} 26. Rg1 {[%emt 00:00:45]
[%clk 00:12:42]} Bxe4 {[%emt 00:00:17] [%clk 00:05:15]} 27. Bxg7 {[%emt
00:00:02] [%clk 00:12:50]} Bg6 {[%emt 00:00:35] [%clk 00:04:51]} 28. Bd4 {[%emt
00:00:53] [%clk 00:12:07]} Rac8 {[%emt 00:00:41] [%clk 00:04:19]} 29. f5 {[%emt
00:01:03] [%clk 00:11:15]} exf5 {[%emt 00:00:05] [%clk 00:04:24]} 30. Qg5 {[%emt
00:00:37] [%clk 00:10:48]} Ne5 {[%emt 00:00:39] [%clk 00:03:55]} 31. h5 {[%emt
00:01:50] [%clk 00:09:07]} Rxc2+ {[%emt 00:00:32] [%clk 00:03:34]} 32. Kxc2
{[%emt 00:00:52] [%clk 00:08:25]} Qxd3+ {[%emt 00:00:02] [%clk 00:03:42]} 33.
Kc1 {[%clk 00:08:35]} Rc8+ {[%emt 00:00:36] [%clk 00:03:16]} 34. Nc3 {[%emt
00:00:23] [%clk 00:08:22]} bxc3 {[%emt 00:00:19] [%clk 00:03:07]} 35. hxg6+
{[%emt 00:01:15] [%clk 00:07:17]} hxg6 {[%emt 00:00:02] [%clk 00:03:15]} 36.
Bxe5 {[%emt 00:00:37] [%clk 00:06:50]} cxb2+ {[%emt 00:00:02] [%clk 00:03:23]}
37. Kxb2 {[%emt 00:00:01] [%clk 00:06:59]} Rb8+ {[%emt 00:00:31] [%clk
00:03:02]} 0-1

[Site "Europe Echecs"]